[Event "Championnat du monde jeunes U12F"]
[Date "2024.11.26"]
[White "Potikha, Shelley"]
[Black "Muradova, Nebahat"]
[WhiteElo "1561"]
[BlackElo "1626"]
[Round "11.32"]
[Result "1-0"]
[TimeControl "5400+30"]

1. e4 {[%clk 1:30:58]} 1... e6 {[%clk 1:30:49]} 2. d3 {[%clk 1:30:46]} 2... d5
{[%clk 1:31:05]} 3. Nd2 {[%clk 1:30:45]} 3... Nd7 {[%clk 1:31:03]} 4. Ngf3
{[%clk 1:30:03]} 4... dxe4 {[%clk 1:31:09]} 5. dxe4 {[%clk 1:29:51]} 5... Bc5
{[%clk 1:30:25]} 6. g3 {[%clk 1:29:44]} 6... b6 {[%clk 1:23:31]} 7. Bg2 {[%clk
1:27:03]} 7... Bb7 {[%clk 1:20:54]} 8. O-O {[%clk 1:25:03]} 8... Ngf6 {[%clk
1:17:34]} 9. Qe2 {[%clk 1:09:22]} 9... O-O {[%clk 1:09:36]} 10. e5 {[%clk
1:04:12]} 10... Nd5 {[%clk 1:03:18]} 11. Ne4 {[%clk 1:01:12]} 11... a5 {[%clk
0:54:59]} 12. Bg5 {[%clk 0:56:30]} 12... Be7 {[%clk 0:53:42]} 13. Bxe7 {[%clk
0:53:18]} 13... Qxe7 {[%clk 0:54:08]} 14. a3 {[%clk 0:50:21]} 14... b5 {[%clk
0:50:40]} 15. Rfe1 {[%clk 0:43:22]} 15... Ba6 {[%clk 0:50:04]} 16. Qd2 {[%clk
0:37:53]} 16... N7b6 {[%clk 0:48:42]} 17. b3 {[%clk 0:29:47]} 17... a4 {[%clk
0:45:15]} 18. Nc3 {[%clk 0:25:11]} 18... Rad8 {[%clk 0:40:20]} 19. Nd4 {[%clk
0:18:50]} 19... Qc5 {[%clk 0:38:42]} 20. Ne4 {[%clk 0:13:55]} 20... Nc4 {[%clk
0:29:23]} 21. bxc4 {[%clk 0:12:21]} 21... Qxc4 {[%clk 0:29:47]} 22. Qd3 {[%clk
0:09:50]} 22... Qxd3 {[%clk 0:29:51]} 23. cxd3 {[%clk 0:10:14]} 23... Ne7 {[%clk
0:30:07]} 24. Nc2 {[%clk 0:09:48]} 1-0

[Variant "Standard"]
[Site "Europe Echecs"]

[Event "Championnat du monde jeunes U12F"]
[Date "2024.11.26"]
[White "Jacome Revelo, Daniela Alexandra"]
[Black "Li, Yeeshuen"]
[WhiteElo "1764"]
[BlackElo "1546"]
[Round "11.33"]
[Result "1-0"]
[TimeControl "5400+30"]

1. e4 {[%clk 1:30:56]} 1... d5 {[%clk 1:30:46]} 2. exd5 {[%clk 1:31:17]} 2...
Nf6 {[%clk 1:31:09]} 3. c4 {[%clk 1:23:44]} 3... c6 {[%clk 1:31:26]} 4. dxc6
{[%clk 1:24:09]} 4... Nxc6 {[%clk 1:31:38]} 5. h3 {[%clk 1:22:22]} 5... Bf5
{[%clk 1:26:33]} 6. Nf3 {[%clk 1:17:50]} 6... e6 {[%clk 1:21:07]} 7. d4 {[%clk
1:15:15]} 7... Bb4+ {[%clk 1:11:32]} 8. Bd2 {[%clk 1:12:07]} 8... Qa5 {[%clk
1:10:32]} 9. Bxb4 {[%clk 1:07:52]} 9... Nxb4 {[%clk 1:10:36]} 10. Na3 {[%clk
0:48:47]} 10... Nc2+ {[%clk 1:10:16]} 11. Ke2 {[%clk 0:48:41]} 11... Nxa1 {[%clk
1:10:04]} 12. Qxa1 {[%clk 0:49:06]} 12... O-O-O {[%clk 1:08:44]} 13. Qd1 {[%clk
0:45:53]} 13... Ne4 {[%clk 1:01:59]} 14. Qb3 {[%clk 0:42:53]} 14... Rd6 {[%clk
0:57:47]} 15. c5 {[%clk 0:39:32]} 15... Rd7 {[%clk 0:55:43]} 16. g4 {[%clk
0:36:48]} 16... Bg6 {[%clk 0:54:19]} 17. Bg2 {[%clk 0:36:30]} 17... Rhd8 {[%clk
0:51:26]} 18. Rd1 {[%clk 0:32:55]} 18... e5 {[%clk 0:39:50]} 19. Nc4 {[%clk
0:28:47]} 19... Qa6 {[%clk 0:38:57]} 20. Nxe5 {[%clk 0:27:23]} 20... Rxd4 {[%clk
0:37:33]} 21. Rxd4 {[%clk 0:27:14]} 21... Rxd4 {[%clk 0:37:48]} 22. Ke3 {[%clk
0:22:34]} 22... Rxc4 {[%clk 0:19:27]} 23. Qxc4 {[%clk 0:20:02]} 23... Qxc4
{[%clk 0:19:47]} 24. Nxc4 {[%clk 0:20:29]} 24... Nxc5 {[%clk 0:20:00]} 25. Nd6+
{[%clk 0:20:18]} 25... Kc7 {[%clk 0:19:57]} 26. Ne8+ {[%clk 0:20:33]} 26... Kb6
{[%clk 0:19:49]} 27. Nxg7 {[%clk 0:20:32]} 27... Nd3 {[%clk 0:19:07]} 28. f4
{[%clk 0:20:22]} 28... f6 {[%clk 0:18:17]} 29. f5 {[%clk 0:20:27]} 29... Bxf5
{[%clk 0:18:19]} 30. gxf5 {[%clk 0:20:51]} 30... Nxb2 {[%clk 0:18:38]} 31. Ne8
{[%clk 0:20:23]} 31... Nc4+ {[%clk 0:18:17]} 32. Kd4 {[%clk 0:20:19]} 32... Ne5
{[%clk 0:17:43]} 33. Nxf6 {[%clk 0:20:11]} 33... Nc6+ {[%clk 0:18:03]} 34. Bxc6
{[%clk 0:20:34]} 34... bxc6 {[%clk 0:18:28]} 35. Ne4 {[%clk 0:20:54]} 35... Kc7
{[%clk 0:18:46]} 36. f6 {[%clk 0:21:17]} 36... Kd7 {[%clk 0:19:00]} 37. f7
{[%clk 0:21:35]} 37... Ke6 {[%clk 0:18:46]} 38. f8=Q {[%clk 0:21:47]} 38... c5+
{[%clk 0:19:08]} 39. Nxc5# {[%clk 0:22:07]} 1-0

[Variant "Standard"]
[Site "Europe Echecs"]

[Event "Championnat du monde jeunes U12F"]
[Date "2024.11.26"]
[White "Radenkovic, Lena"]
[Black "Moscovitch, Shelly"]
[WhiteElo "1675"]
[BlackElo "1552"]
[Round "11.34"]
[Result "1-0"]
[TimeControl "5400+30"]

1. Nf3 {[%clk 1:30:43]} 1... d5 {[%clk 1:30:20]} 2. g3 {[%clk 1:30:44]} 2... Nd7
{[%clk 1:29:39]} 3. Bg2 {[%clk 1:29:09]} 3... e5 {[%clk 1:28:54]} 4. d3 {[%clk
1:28:07]} 4... Ngf6 {[%clk 1:27:24]} 5. Nbd2 {[%clk 1:27:08]} 5... Bc5 {[%clk
1:25:44]} 6. O-O {[%clk 1:26:59]} 6... e4 {[%clk 1:23:37]} 7. Nh4 {[%clk
1:12:02]} 7... e3 {[%clk 1:20:46]} 8. Ndf3 {[%clk 1:08:39]} 8... exf2+ {[%clk
1:18:46]} 9. Kh1 {[%clk 1:08:47]} 9... O-O {[%clk 1:17:22]} 10. d4 {[%clk
1:07:04]} 10... Bd6 {[%clk 1:13:44]} 11. Nf5 {[%clk 1:02:02]} 11... Nb6 {[%clk
1:11:27]} 12. Nxd6 {[%clk 0:59:13]} 12... Qxd6 {[%clk 1:10:17]} 13. Bf4 {[%clk
0:57:24]} 13... Qe7 {[%clk 1:08:57]} 14. Bg5 {[%clk 0:56:45]} 14... h6 {[%clk
1:07:17]} 15. Bxf6 {[%clk 0:56:35]} 15... Qxf6 {[%clk 1:06:52]} 16. Rxf2 {[%clk
0:56:26]} 16... Nc4 {[%clk 1:02:39]} 17. b3 {[%clk 0:48:59]} 17... Ne3 {[%clk
1:00:03]} 18. Qd2 {[%clk 0:46:50]} 18... Re8 {[%clk 0:52:44]} 19. Kg1 {[%clk
0:34:58]} 19... Nxg2 {[%clk 0:47:39]} 20. Kxg2 {[%clk 0:34:10]} 20... Be6 {[%clk
0:45:20]} 21. Kg1 {[%clk 0:27:21]} 21... Qe7 {[%clk 0:43:11]} 22. Ne5 {[%clk
0:26:50]} 22... Rad8 {[%clk 0:39:33]} 23. Qd3 {[%clk 0:24:38]} 23... c6 {[%clk
0:38:12]} 24. c3 {[%clk 0:23:09]} 24... Qc7 {[%clk 0:35:15]} 25. Re1 {[%clk
0:16:48]} 25... c5 {[%clk 0:32:05]} 26. Ref1 {[%clk 0:14:38]} 26... Rf8 {[%clk
0:29:35]} 27. g4 {[%clk 0:12:43]} 27... Rc8 {[%clk 0:26:19]} 28. Qe3 {[%clk
0:10:22]} 28... cxd4 {[%clk 0:24:03]} 29. cxd4 {[%clk 0:10:29]} 29... Qc2 {[%clk
0:20:39]} 30. Rg2 {[%clk 0:09:12]} 30... f6 {[%clk 0:15:46]} 31. Nd3 {[%clk
0:08:26]} 31... Rfe8 {[%clk 0:14:46]} 32. Qg3 {[%clk 0:08:21]} 32... Qxa2 {[%clk
0:11:39]} 33. h4 {[%clk 0:08:14]} 33... Qa5 {[%clk 0:09:50]} 34. g5 {[%clk
0:08:07]} 34... Qc7 {[%clk 0:09:11]} 35. gxf6 {[%clk 0:07:14]} 35... Qxg3 {[%clk
0:08:38]} 36. Rxg3 {[%clk 0:07:37]} 36... Rc7 {[%clk 0:07:47]} 37. Re3 {[%clk
0:06:27]} 37... Bf7 {[%clk 0:02:33]} 38. Ne5 {[%clk 0:05:21]} 38... gxf6 {[%clk
0:02:15]} 39. Rxf6 {[%clk 0:05:24]} 39... Kg7 {[%clk 0:02:17]} 40. Rf2 {[%clk
0:05:31]} 40... Ree7 {[%clk 0:02:09]} 41. Rg3+ {[%clk 0:05:33]} 41... Kh7 {[%clk
0:01:52]} 42. Rfg2 {[%clk 0:05:14]} 42... Be6 {[%clk 0:02:00]} 43. Ng6 {[%clk
0:05:21]} 43... Rf7 {[%clk 0:02:08]} 44. h5 {[%clk 0:04:59]} 44... Rc1+ {[%clk
0:01:48]} 45. Kh2 {[%clk 0:05:16]} 45... Rff1 {[%clk 0:01:33]} 46. Rg1 {[%clk
0:04:32]} 46... Rf2+ {[%clk 0:01:23]} 47. R3g2 {[%clk 0:04:43]} 47... Rxg2+
{[%clk 0:01:30]} 48. Rxg2 Rd1 {[%clk 0:01:47]} 49. Nf8+ {[%clk 0:05:27]} 49...
Kh8 {[%clk 0:01:59]} 50. Nxe6 {[%clk 0:05:51]} 50... Rb1 {[%clk 0:02:05]} 51.
Rg3 {[%clk 0:05:44]} 51... Rb2 {[%clk 0:02:20]} 52. Nf4 {[%clk 0:05:58]} 52...
Rd2 {[%clk 0:02:21]} 53. Rd3 {[%clk 0:05:56]} 53... Rb2 {[%clk 0:02:30]} 54.
Nxd5 {[%clk 0:06:01]} 54... Rxe2+ {[%clk 0:02:52]} 55. Kg3 {[%clk 0:06:26]} 1-0

[Variant "Standard"]
[Site "Europe Echecs"]

[Event "Championnat du monde jeunes U12F"]
[Date "2024.11.26"]
[White "Stepankova, Linda"]
[Black "Hiznicenco, Valeria"]
[WhiteElo "1624"]
[BlackElo "1513"]
[Round "11.35"]
[Result "1-0"]
[TimeControl "5400+30"]

1. d4 {[%clk 1:30:59]} 1... Nf6 {[%clk 1:30:42]} 2. c4 {[%clk 1:31:12]} 2... g6
{[%clk 1:30:40]} 3. Nc3 {[%clk 1:31:24]} 3... d5 {[%clk 1:28:54]} 4. Bd2 {[%clk
1:29:15]} 4... Bg7 {[%clk 1:27:50]} 5. cxd5 {[%clk 1:29:02]} 5... Nxd5 {[%clk
1:27:52]} 6. e4 {[%clk 1:29:05]} 6... Nxc3 {[%clk 1:26:23]} 7. Bxc3 {[%clk
1:29:24]} 7... O-O {[%clk 1:25:29]} 8. Nf3 {[%clk 1:28:50]} 8... b6 {[%clk
1:18:12]} 9. Bd3 {[%clk 1:19:37]} 9... Bb7 {[%clk 1:14:20]} 10. O-O {[%clk
1:19:41]} 10... Nd7 {[%clk 1:10:11]} 11. Re1 {[%clk 1:18:46]} 11... e6 {[%clk
1:09:10]} 12. Bc4 {[%clk 1:15:13]} 12... Re8 {[%clk 1:03:04]} 13. Qb3 {[%clk
1:10:16]} 13... c5 {[%clk 0:48:30]} 14. d5 {[%clk 1:07:06]} 14... exd5 {[%clk
0:46:05]} 15. Bxd5 {[%clk 1:04:24]} 15... Bxd5 {[%clk 0:45:47]} 16. exd5 {[%clk
1:03:05]} 16... Nf6 {[%clk 0:45:16]} 17. Rxe8+ {[%clk 1:02:23]} 17... Qxe8
{[%clk 0:45:09]} 18. Re1 {[%clk 0:59:03]} 18... Qd7 {[%clk 0:43:40]} 19. Rd1
{[%clk 0:46:06]} 19... Rd8 {[%clk 0:40:46]} 20. Ne5 {[%clk 0:38:44]} 20... Qd6
{[%clk 0:32:28]} 21. Nc6 {[%clk 0:37:23]} 21... Ra8 {[%clk 0:18:01]} 22. Be5
{[%clk 0:34:33]} 22... Qd7 {[%clk 0:16:56]} 23. Qf3 {[%clk 0:32:35]} 23... Ne8
{[%clk 0:14:00]} 24. Bxg7 Nxg7 {[%clk 0:13:26]} 25. d6 {[%clk 0:27:15]} 25...
Re8 {[%clk 0:08:27]} 26. Ne7+ {[%clk 0:23:47]} 26... Kf8 {[%clk 0:07:05]} 27.
Qf6 {[%clk 0:16:37]} 27... a6 {[%clk 0:03:35]} 28. h4 {[%clk 0:14:38]} 28... b5
{[%clk 0:03:09]} 29. h5 {[%clk 0:12:54]} 29... gxh5 {[%clk 0:03:29]} 30. Qh6
{[%clk 0:12:10]} 30... Rd8 {[%clk 0:02:04]} 31. Qxh7 {[%clk 0:12:06]} 31... f6
{[%clk 0:02:10]} 32. Re1 {[%clk 0:04:46]} 32... Kf7 {[%clk 0:01:46]} 33. Qg6+
{[%clk 0:04:42]} 33... Kf8 {[%clk 0:02:06]} 34. Qxf6+ {[%clk 0:04:57]} 34... Ke8
{[%clk 0:02:21]} 35. Qxg7 {[%clk 0:04:45]} 35... Qxd6 {[%clk 0:02:26]} 36. Nf5+
{[%clk 0:04:45]} 36... Qe7 {[%clk 0:02:37]} 37. Qxe7# {[%clk 0:05:06]} 1-0

[Variant "Standard"]
[Site "Europe Echecs"]

[Event "Championnat du monde jeunes U12F"]
[Date "2024.11.26"]
[White "Budhram, Kaylee"]
[Black "Istratova, Nika"]
[WhiteElo "1614"]
[BlackElo "1473"]
[Round "11.36"]
[Result "1/2-1/2"]
[TimeControl "5400+30"]

1. d4 {[%clk 1:30:58]} 1... d5 {[%clk 1:30:49]} 2. c4 {[%clk 1:31:23]} 2... e6
{[%clk 1:31:10]} 3. Nf3 {[%clk 1:31:42]} 3... Nf6 {[%clk 1:31:26]} 4. g3 {[%clk
1:32:04]} 4... Be7 {[%clk 1:31:39]} 5. Bg2 {[%clk 1:32:28]} 5... c6 {[%clk
1:31:26]} 6. O-O {[%clk 1:32:50]} 6... O-O {[%clk 1:31:32]} 7. Qc2 {[%clk
1:33:14]} 7... b6 {[%clk 1:30:20]} 8. Rd1 {[%clk 1:32:50]} 8... Bb7 {[%clk
1:28:27]} 9. Bf4 {[%clk 1:32:54]} 9... Bd6 {[%clk 1:24:34]} 10. Ne5 {[%clk
1:31:28]} 10... Qc7 {[%clk 1:21:17]} 11. Nc3 {[%clk 1:22:34]} 11... dxc4 {[%clk
1:14:41]} 12. a4 {[%clk 1:11:15]} 12... Nbd7 {[%clk 1:04:47]} 13. Nxd7 {[%clk
1:08:41]} 13... Qxd7 {[%clk 1:02:29]} 14. Bxd6 {[%clk 1:06:18]} 14... Qxd6
{[%clk 1:02:41]} 15. a5 {[%clk 1:03:38]} 15... Ba6 {[%clk 0:51:53]} 16. Ne4
{[%clk 0:56:51]} 16... Nxe4 {[%clk 0:47:54]} 17. Bxe4 {[%clk 0:57:06]} 17... g6
{[%clk 0:42:42]} 18. e3 {[%clk 0:50:34]} 18... b5 {[%clk 0:34:17]} 19. b3 {[%clk
0:48:13]} 19... Rac8 {[%clk 0:28:37]} 20. Bg2 {[%clk 0:47:15]} 20... Qb4 {[%clk
0:25:53]} 21. bxc4 {[%clk 0:47:38]} 21... Qxc4 {[%clk 0:22:46]} 22. Qxc4 {[%clk
0:48:01]} 22... bxc4 {[%clk 0:23:05]} 23. Bf1 {[%clk 0:48:10]} 23... c5 {[%clk
0:19:50]} 24. d5 {[%clk 0:43:27]} 24... exd5 {[%clk 0:18:10]} 25. Rxd5 {[%clk
0:43:47]} 25... Rfe8 {[%clk 0:14:31]} 26. Rd7 {[%clk 0:40:45]} 26... Ra8 {[%clk
0:12:27]} 27. Bg2 {[%clk 0:40:50]} 27... Red8 {[%clk 0:10:01]} 28. Rad1 {[%clk
0:32:55]} 28... Rxd7 {[%clk 0:09:08]} 29. Rxd7 {[%clk 0:33:17]} 29... Rb8 {[%clk
0:06:07]} 30. Be4 {[%clk 0:26:38]} 30... c3 {[%clk 0:03:28]} 31. Rxa7 {[%clk
0:26:25]} 31... Rb4 {[%clk 0:02:18]} 32. Bc2 {[%clk 0:24:08]} 32... Bc4 {[%clk
0:01:16]} 33. Rc7 {[%clk 0:21:47]} 33... Bb3 {[%clk 0:00:43]} 34. Bxb3 {[%clk
0:21:41]} 34... Rxb3 {[%clk 0:00:58]} 35. Rxc5 {[%clk 0:21:46]} 35... Ra3 {[%clk
0:01:07]} 36. Kg2 {[%clk 0:21:40]} 36... Kf8 {[%clk 0:01:15]} 37. Kf3 {[%clk
0:21:37]} 37... Ke7 {[%clk 0:01:02]} 38. a6 {[%clk 0:20:39]} 38... c2 {[%clk
0:01:01]} 39. Rxc2 {[%clk 0:20:24]} 39... Rxa6 {[%clk 0:01:24]} 40. Rc7+ {[%clk
0:20:33]} 40... Kf6 {[%clk 0:01:40]} 41. h4 {[%clk 0:19:43]} 41... h5 {[%clk
0:01:25]} 42. Kf4 {[%clk 0:18:28]} 42... Ra5 {[%clk 0:01:14]} 43. e4 {[%clk
0:17:36]} 43... Ra4 {[%clk 0:00:45]} 44. f3 {[%clk 0:15:45]} 44... Kg7 {[%clk
0:00:43]} 45. Kg5 {[%clk 0:14:15]} 45... Ra5+ {[%clk 0:01:03]} 46. Kf4 {[%clk
0:14:36]} 46... Ra4 {[%clk 0:01:17]} 47. g4 {[%clk 0:11:55]} 47... Kf6 {[%clk
0:00:40]} 48. gxh5 {[%clk 0:06:45]} 48... gxh5 {[%clk 0:00:50]} 49. Rc5 {[%clk
0:06:51]} 49... Kg6 {[%clk 0:00:45]} 50. Rg5+ {[%clk 0:06:09]} 50... Kh6 {[%clk
0:00:50]} 51. Kf5 {[%clk 0:05:05]} 51... Ra5+ {[%clk 0:00:46]} 1/2-1/2

[Variant "Standard"]
[Site "Europe Echecs"]

[Event "Championnat du monde jeunes U12F"]
[Date "2024.11.26"]
[White "Laurincova, Timea"]
[Black "Dzafic, Merjem"]
[WhiteElo "1549"]
[BlackElo "1568"]
[Round "11.38"]
[Result "1-0"]
[TimeControl "5400+30"]

1. e4 {[%clk 1:30:57]} 1... c6 {[%clk 1:30:53]} 2. d4 {[%clk 1:31:23]} 2... d5
{[%clk 1:31:20]} 3. exd5 {[%clk 1:31:43]} 3... cxd5 {[%clk 1:31:44]} 4. Bd3
{[%clk 1:32:06]} 4... Nf6 {[%clk 1:32:07]} 5. h3 {[%clk 1:32:27]} 5... Nc6
{[%clk 1:32:25]} 6. c3 {[%clk 1:32:48]} 6... e5 {[%clk 1:32:15]} 7. dxe5 {[%clk
1:32:58]} 7... Nxe5 {[%clk 1:32:19]} 8. Nf3 {[%clk 1:33:16]} 8... Nxd3+ {[%clk
1:31:28]} 9. Qxd3 {[%clk 1:33:38]} 9... h6 {[%clk 1:29:33]} 10. O-O {[%clk
1:33:01]} 10... Be7 {[%clk 1:28:53]} 11. Nbd2 {[%clk 1:31:00]} 11... O-O {[%clk
1:28:42]} 12. Re1 {[%clk 1:30:59]} 12... Bd7 {[%clk 1:27:52]} 13. Nb3 {[%clk
1:29:32]} 13... Rc8 {[%clk 1:27:01]} 14. Bf4 {[%clk 1:28:49]} 14... Re8 {[%clk
1:23:41]} 15. Re3 {[%clk 1:26:17]} 15... Qb6 {[%clk 1:13:31]} 16. Rae1 {[%clk
1:20:11]} 16... Bd6 {[%clk 1:12:47]} 17. Rxe8+ {[%clk 1:17:35]} 17... Rxe8
{[%clk 1:13:10]} 18. Rxe8+ {[%clk 1:17:47]} 18... Bxe8 {[%clk 1:13:28]} 19. Bxd6
{[%clk 1:17:56]} 19... Qxd6 {[%clk 1:13:37]} 20. Qd4 {[%clk 1:16:14]} 20... Qa6
{[%clk 1:05:47]} 21. a3 {[%clk 1:13:20]} 21... Qc4 {[%clk 1:00:44]} 22. Nbd2
{[%clk 1:06:44]} 22... Qxd4 {[%clk 0:54:03]} 23. Nxd4 {[%clk 1:06:56]} 23... Bd7
{[%clk 0:53:31]} 24. Kf1 {[%clk 1:05:55]} 24... Kf8 {[%clk 0:53:44]} 25. Ke2
{[%clk 1:06:11]} 25... Ke7 {[%clk 0:53:20]} 26. Ke3 {[%clk 1:05:39]} 26... g5
{[%clk 0:52:27]} 27. N4b3 {[%clk 1:04:10]} 27... b6 {[%clk 0:50:58]} 28. Kd4
{[%clk 1:03:43]} 28... Kd6 {[%clk 0:50:26]} 29. Nc1 {[%clk 1:02:14]} 29... Nh5
{[%clk 0:40:37]} 30. Nd3 {[%clk 0:58:59]} 30... f6 {[%clk 0:40:32]} 31. Nf3
{[%clk 0:56:01]} 31... Bb5 {[%clk 0:37:44]} 32. Nfe1 {[%clk 0:54:54]} 32... Ng7
{[%clk 0:32:53]} 33. g4 {[%clk 0:52:30]} 33... Ne6+ {[%clk 0:32:43]} 34. Ke3
{[%clk 0:52:28]} 34... Bxd3 {[%clk 0:31:28]} 35. Nxd3 {[%clk 0:52:37]} 35... Nc5
{[%clk 0:30:18]} 36. f3 {[%clk 0:26:32]} 36... Nxd3 {[%clk 0:28:30]} 37. Kxd3
{[%clk 0:26:51]} 37... Ke5 {[%clk 0:28:40]} 38. Ke3 {[%clk 0:26:59]} 38... b5
{[%clk 0:28:35]} 39. b3 {[%clk 0:23:21]} 39... f5 {[%clk 0:23:14]} 40. gxf5
{[%clk 0:19:50]} 40... Kxf5 {[%clk 0:23:08]} 41. Kd4 {[%clk 0:18:50]} 41... Kf4
{[%clk 0:23:12]} 42. Kxd5 {[%clk 0:18:12]} 42... Kxf3 {[%clk 0:23:23]} 43. c4
{[%clk 0:18:27]} 43... bxc4 {[%clk 0:22:19]} 44. bxc4 {[%clk 0:18:51]} 44... Kg3
{[%clk 0:22:46]} 45. c5 {[%clk 0:19:12]} 45... Kxh3 {[%clk 0:23:12]} 46. c6
{[%clk 0:19:25]} 46... g4 {[%clk 0:23:23]} 47. c7 {[%clk 0:19:46]} 47... g3
{[%clk 0:22:37]} 48. c8=Q+ {[%clk 0:20:06]} 48... Kh2 {[%clk 0:23:05]} 49. Qh8
{[%clk 0:19:20]} 49... g2 {[%clk 0:22:49]} 50. Qxh6+ {[%clk 0:19:30]} 50... Kg3
{[%clk 0:23:11]} 51. Qe3+ {[%clk 0:19:01]} 51... Kh2 {[%clk 0:23:20]} 52. Qf2
{[%clk 0:19:13]} 52... Kh3 {[%clk 0:22:51]} 53. Qg1 {[%clk 0:19:31]} 53... Kg3
{[%clk 0:23:07]} 54. Ke4 {[%clk 0:19:52]} 54... Kh3 {[%clk 0:23:15]} 55. Kf3
{[%clk 0:20:00]} 55... Kh4 {[%clk 0:23:32]} 56. Qxg2 {[%clk 0:20:19]} 56... Kh5
{[%clk 0:23:54]} 57. Kf4 {[%clk 0:20:28]} 57... Kh6 {[%clk 0:24:12]} 58. Qg8
{[%clk 0:20:07]} 58... Kh5 {[%clk 0:24:29]} 59. Qg5# 1-0

[Variant "Standard"]
[Site "Europe Echecs"]

[Event "Championnat du monde jeunes U12F"]
[Date "2024.11.26"]
[White "Groselj, Mirjam"]
[Black "Mrad, Anahid"]
[WhiteElo "1470"]
[BlackElo "1558"]
[Round "11.39"]
[Result "0-1"]
[TimeControl "5400+30"]

1. e4 {[%clk 1:30:53]} 1... e5 {[%clk 1:31:27]} 2. Nf3 {[%clk 1:31:11]} 2... Nc6
{[%clk 1:31:54]} 3. Bc4 {[%clk 1:31:34]} 3... Nf6 {[%clk 1:32:20]} 4. d3 {[%clk
1:31:44]} 4... Bc5 {[%clk 1:32:46]} 5. c3 {[%clk 1:32:03]} 5... d6 {[%clk
1:32:50]} 6. O-O {[%clk 1:31:46]} 6... O-O {[%clk 1:33:07]} 7. h3 {[%clk
1:31:55]} 7... Be6 {[%clk 1:32:23]} 8. Bb3 {[%clk 1:31:18]} 8... a6 {[%clk
1:32:25]} 9. Bg5 {[%clk 1:30:50]} 9... h6 {[%clk 1:32:13]} 10. Bh4 {[%clk
1:31:03]} 10... Bxb3 {[%clk 1:32:06]} 11. axb3 {[%clk 1:30:57]} 11... Qe7 {[%clk
1:32:01]} 12. Nbd2 {[%clk 1:28:57]} 12... Qe6 {[%clk 1:30:27]} 13. Re1 {[%clk
1:27:02]} 13... Nh5 {[%clk 1:28:42]} 14. Nd4 {[%clk 1:20:43]} 14... Qg6 {[%clk
1:25:58]} 15. Nxc6 {[%clk 1:14:32]} 15... bxc6 {[%clk 1:26:08]} 16. Kh1 {[%clk
1:12:46]} 16... Nf4 {[%clk 1:24:27]} 17. Bg3 {[%clk 1:11:59]} 17... Bxf2 {[%clk
1:21:14]} 18. Qf3 {[%clk 1:08:31]} 18... Qxg3 {[%clk 1:18:52]} 19. Qxg3 {[%clk
1:08:32]} 19... Bxg3 {[%clk 1:19:13]} 20. Re3 {[%clk 1:08:13]} 20... Bf2 {[%clk
1:19:27]} 21. Rf3 {[%clk 1:08:11]} 21... Bb6 {[%clk 1:19:35]} 22. d4 {[%clk
1:06:50]} 22... f5 {[%clk 1:18:48]} 23. dxe5 {[%clk 1:06:46]} 23... dxe5 {[%clk
1:19:04]} 24. exf5 {[%clk 1:07:10]} 24... Rxf5 {[%clk 1:18:52]} 25. Re1 {[%clk
1:07:20]} 25... Re8 {[%clk 1:18:06]} 26. Rff1 {[%clk 1:07:26]} 26... Nd3 {[%clk
1:16:41]} 27. Rxf5 {[%clk 1:07:20]} 27... Nxe1 {[%clk 1:16:54]} 28. Rf1 {[%clk
1:07:28]} 28... Nd3 {[%clk 1:16:48]} 29. Rb1 {[%clk 1:07:31]} 29... e4 {[%clk
1:15:29]} 30. Nc4 {[%clk 1:06:19]} 30... e3 {[%clk 1:15:36]} 31. Kh2 {[%clk
1:06:28]} 31... e2 {[%clk 1:15:52]} 0-1

[Variant "Standard"]
[Site "Europe Echecs"]

[Event "Championnat du monde jeunes U12F"]
[Date "2024.11.26"]
[White "Xu, Melissa"]
[Black "Yang, Hayeon"]
[WhiteElo "1731"]
[BlackElo "1482"]
[Round "11.40"]
[Result "1-0"]
[TimeControl "5400+30"]

1. e4 {[%clk 1:30:56]} 1... e5 {[%clk 1:30:41]} 2. Nf3 {[%clk 1:31:22]} 2... Nc6
{[%clk 1:30:56]} 3. Bc4 {[%clk 1:31:46]} 3... Bc5 {[%clk 1:31:05]} 4. d3 {[%clk
1:32:10]} 4... h6 {[%clk 1:30:38]} 5. c3 {[%clk 1:32:29]} 5... Nf6 {[%clk
1:30:47]} 6. b4 {[%clk 1:32:42]} 6... Bb6 {[%clk 1:29:24]} 7. a4 {[%clk
1:32:59]} 7... a6 {[%clk 1:29:28]} 8. Qb3 {[%clk 1:29:17]} 8... O-O {[%clk
1:28:23]} 9. O-O {[%clk 1:29:31]} 9... d6 {[%clk 1:27:47]} 10. Nbd2 {[%clk
1:27:33]} 10... Ne7 {[%clk 1:26:48]} 11. Bb2 {[%clk 1:22:25]} 11... Ng6 {[%clk
1:24:45]} 12. d4 {[%clk 1:19:40]} 12... c6 {[%clk 1:22:17]} 13. Bd3 {[%clk
1:08:51]} 13... Be6 {[%clk 1:20:52]} 14. Qc2 {[%clk 1:06:04]} 14... Nh5 {[%clk
1:16:52]} 15. c4 {[%clk 1:00:56]} 15... exd4 {[%clk 1:15:35]} 16. Nxd4 {[%clk
0:53:26]} 16... Nhf4 {[%clk 1:14:05]} 17. Nxe6 {[%clk 0:44:12]} 17... fxe6
{[%clk 1:12:59]} 18. Nf3 {[%clk 0:40:54]} 18... Nh4 {[%clk 1:09:23]} 19. Nxh4
{[%clk 0:35:59]} 19... Qxh4 {[%clk 1:09:22]} 20. Be2 {[%clk 0:29:32]} 20... Qg5
{[%clk 1:08:18]} 21. Bf3 {[%clk 0:28:31]} 21... Ng6 {[%clk 1:07:27]} 22. Kh1
{[%clk 0:25:06]} 22... Ne5 {[%clk 0:58:10]} 23. Bxe5 Qxe5 {[%clk 0:58:10]} 24.
a5 {[%clk 0:21:34]} 24... Bc7 {[%clk 0:57:49]} 25. Ra3 {[%clk 0:20:09]} 25...
Rf7 {[%clk 0:56:31]} 26. g3 {[%clk 0:18:58]} 26... Raf8 {[%clk 0:55:14]} 27. Bg2
{[%clk 0:19:06]} 27... d5 {[%clk 0:54:34]} 28. f4 {[%clk 0:17:18]} 28... Qd6
{[%clk 0:52:33]} 29. c5 {[%clk 0:16:53]} 29... Qd7 {[%clk 0:51:08]} 30. exd5
{[%clk 0:16:25]} 30... cxd5 {[%clk 0:50:55]} 31. Re1 {[%clk 0:13:11]} 31... Re7
{[%clk 0:49:51]} 32. Bh3 {[%clk 0:12:43]} 32... Qc6 {[%clk 0:48:38]} 33. Qa2
{[%clk 0:11:26]} 33... Kh8 {[%clk 0:46:45]} 34. Rd3 {[%clk 0:09:22]} 34... Rfe8
{[%clk 0:46:16]} 35. Rd2 {[%clk 0:07:45]} 35... e5 {[%clk 0:45:16]} 36. Bg2
{[%clk 0:05:48]} 36... Qb5 {[%clk 0:44:03]} 37. Bxd5 {[%clk 0:05:07]} 37... exf4
{[%clk 0:44:04]} 38. Rxe7 {[%clk 0:04:55]} 38... Rxe7 {[%clk 0:44:24]} 39. Bc4
{[%clk 0:04:19]} 39... Qxb4 {[%clk 0:43:57]} 40. Re2 {[%clk 0:04:17]} 40... Qxc5
{[%clk 0:43:46]} 41. Be6 {[%clk 0:03:17]} 41... fxg3 {[%clk 0:42:54]} 42. hxg3
Qxa5 {[%clk 0:42:13]} 43. Qc2 {[%clk 0:03:07]} 43... Bxg3 {[%clk 0:41:14]} 44.
Qc8+ {[%clk 0:03:25]} 44... Kh7 {[%clk 0:38:35]} 45. Bf5+ {[%clk 0:03:49]} 45...
Qxf5 {[%clk 0:36:39]} 46. Qxf5+ {[%clk 0:04:13]} 46... Kg8 {[%clk 0:36:35]} 47.
Rxe7 {[%clk 0:04:39]} 1-0

[Variant "Standard"]
[Site "Europe Echecs"]